[Event "CAT-chT Honor Division 2019"]
[Site "Catalonia"]
[Date "2019.02.02"]
[Round "3"]
[White "Guasch Sariol, Jaume"]
[Black "Barcelo Sola, David"]
[Result "0-1"]
[ECO "D06"]
[WhiteElo "2085"]
[BlackElo "1991"]
[Annotator "NA RC"]
[PlyCount "58"]
[EventDate "2019.01.16"]
[EventType "team-tourn"]
[EventCountry "ESP"]
[SourceTitle "playchess.com"]
[Source "ChessBase"]
[SourceQuality "1"]
[WhiteTeam "Cerdanyola"]
[BlackTeam "Sant Josep Badalona"]
[TimeControl "5400+30"]

1. d4 {[%emt 0:00:00]} d5 {[%emt 0:00:00]} 2. c4 {[%emt 0:00:00]} c5 {[%emt 0:00:00]} 3. e3 e6 4. Nf3 {[%emt 0:01:04]} Nf6 {[%emt 0:01:13]} 5. Nc3 {[%emt 0:00:22]} Nc6 {[%emt 0:00:20]} 6. Be2 Be7 {[%emt 0:02:32]} 7. O-O {[%emt 0:02:25]} O-O {[%emt 0:00:10]} 8. a3 {[%emt 0:05:37]} b6 {[%emt 0:03:32]} 9. Re1 {[%emt 0:01:34]} Bb7 {[%emt 0:05:51]} 10. cxd5 {[%emt 0:07:34]} exd5 {[%emt 0:13:18]} 11. Bd3 {[%emt 0:05:12]} Re8 {[%emt 0:03:25]} 12. Bd2 {[%emt 0:06:33]} Bf8 {[%emt 0:04:25]} 13. Rc1 {[%emt 0:04:06]} c4 {[%emt 0:04:08]} 14. Bb1 {[%emt 0:07:13]} a6 {[%emt 0:01:38]} 15. Ne2 {[%emt 0:03:07]} b5 {[%emt 0:03:07]} 16. Ng3 a5 17. a4 {[%emt 0:08:55]} b4 {[%emt 0:03:05]} 18. e4 {[%emt 0:00:00]} dxe4 {[%emt 0:02:52]} 19. Nxe4 Nxd4 {[%emt 0:06:20]} 20. Nxf6+ {[%emt 0:06:24]} Qxf6 {[%emt 0:00:32]} 21. Nxd4 {[%emt 0:03:07]} Qxd4 {[%emt 0:03:16]} 22. Qc2 {[%emt 0:01:21]} g6 {[%emt 0:00:40]} 23. Be3 {[%emt 0:01:15]} Qd5 24. f3 {[%emt 0:00:02]} Rxe3 {[%emt 0:01:03]} 25. Rxe3 {[%emt 0:01:34]} Bc5 {[%emt 0:12:13]} 26. Qe2 {[%emt 0:01:17]} Re8 {[%emt 0:00:27]} 27. Be4 Rxe4 28. fxe4 {[%emt 0:01:08]} Qxe4 {[%emt 0:00:48]} 29. Kf2 Qf4+ 0-1

[Event "CAT-chT Honor Division 2019"]
[Site "Catalonia"]
[Date "2019.02.09"]
[Round "4.1"]
[White "Alonso Rosell, Alvar"]
[Black "Movsziszian, Karen"]
[Result "1-0"]
[ECO "A41"]
[WhiteElo "2559"]
[BlackElo "2485"]
[Annotator "ChessBase"]
[PlyCount "79"]
[EventDate "2019.01.16"]
[EventType "team-tourn"]
[EventCountry "ESP"]
[SourceTitle "playchess.com"]
[Source "ChessBase"]
[SourceQuality "1"]
[WhiteTeam "Gerunda"]
[BlackTeam "Sant Andreu"]
[TimeControl "5400+30"]

1. d4 {[%emt 0:04:37]} d6 {[%emt 0:00:00]} 2. Nf3 {[%emt 0:00:06]} g6 {[%emt 0:00:00]} 3. g3 {[%emt 0:00:28]} Bg7 {[%emt 0:00:39]} 4. Bg2 {[%emt 0:00:07]} Nf6 {[%emt 0:00:42]} 5. O-O {[%emt 0:00:05]} O-O {[%emt 0:00:06]} 6. b3 {[%emt 0:00:02]} c6 {[%emt 0:08:41]} 7. Bb2 {[%emt 0:04:33]} a5 {[%emt 0:02:23]} 8. a4 {[%emt 0:02:48]} Ne4 {[%emt 0:05:51]} 9. Nfd2 {[%emt 0:10:23]} Nxd2 {[%emt 0:00:52]} 10. Nxd2 {[%emt 0:00:17]} d5 {[%emt 0:06:24]} 11. e4 {[%emt 0:04:41]} dxe4 {[%emt 0:00:44]} 12. Nxe4 {[%emt 0:00:07]} Na6 {[%emt 0:00:30]} 13. c3 {[%emt 0:00:51]} Be6 14. Re1 {[%emt 0:13:19]} Re8 {[%emt 0:12:13]} 15. Nd2 {[%emt 0:01:34]} Qc7 {[%emt 0:08:11]} 16. h4 {[%emt 0:17:34]} Rad8 {[%emt 0:05:01]} 17. Rxe6 {[%emt 0:14:40]} fxe6 {[%emt 0:00:04]} 18. h5 {[%emt 0:00:03]} e5 {[%emt 0:03:51]} 19. hxg6 {[%emt 0:00:23]} exd4 {[%emt 0:06:05]} 20. gxh7+ {[%emt 0:00:31]} Kh8 {[%emt 0:00:30]} 21. cxd4 {[%emt 0:00:30]} e5 {[%emt 0:00:30]} 22. Nf3 {[%emt 0:00:30]} exd4 {[%emt 0:00:30]} 23. Nh4 {[%emt 0:00:30]} Kxh7 {[%emt 0:00:30]} 24. Qh5+ {[%emt 0:00:30]} Kg8 {[%emt 0:00:30]} 25. Bf1 {[%emt 0:00:30]} Nb4 {[%emt 0:00:30]} 26. Bc4+ {[%emt 0:00:30]} Nd5 {[%emt 0:00:30]} 27. Nf5 {[%emt 0:00:30]} Re5 {[%emt 0:00:30]} 28. Qg6 {[%emt 0:00:30]} Rxf5 {[%emt 0:00:30]} 29. Qxf5 {[%emt 0:00:30]} Qe5 {[%emt 0:00:30]} 30. Qg6 {[%emt 0:00:30]} Rd6 {[%emt 0:00:30]} 31. Qg4 {[%emt 0:00:30]} Kf7 {[%emt 0:00:30]} 32. Rd1 {[%emt 0:00:30]} c5 {[%emt 0:00:30]} 33. Bc1 {[%emt 0:00:30]} Ke7 {[%emt 0:00:30]} 34. Bxd5 {[%emt 0:00:30]} Rxd5 {[%emt 0:00:30]} 35. Bf4 {[%emt 0:00:30]} Qf6 {[%emt 0:00:30]} 36. Qc8 {[%emt 0:00:30]} Qc6 {[%emt 0:00:30]} 37. Qg8 {[%emt 0:00:30]} Be5 {[%emt 0:00:30]} 38. Bg5+ {[%emt 0:00:30]} Kd6 {[%emt 0:00:30]} 39. f4 {[%emt 0:00:30]} Qd7 {[%emt 0:00:30]} 40. fxe5+ {[%emt 0:00:30]} 1-0

[Event "CAT-chT Honor Division 2019"]
[Site "Catalonia"]
[Date "2019.02.09"]
[Round "4.2"]
[White "Peralta, Fernando"]
[Black "Gual Pascual, Antonio"]
[Result "1/2-1/2"]
[ECO "D19"]
[WhiteElo "2580"]
[BlackElo "2362"]
[Annotator "ChessBase"]
[PlyCount "95"]
[EventDate "2019.01.16"]
[EventType "team-tourn"]
[EventCountry "ESP"]
[SourceTitle "playchess.com"]
[Source "ChessBase"]
[SourceQuality "1"]
[WhiteTeam "Escola Escacs BCN"]
[BlackTeam "Cerdanyola Valles"]
[TimeControl "5400+30"]

1. d4 d5 2. c4 c6 3. Nf3 Nf6 4. Nc3 dxc4 5. a4 Bf5 6. e3 e6 7. Bxc4 Bb4 8. O-O Nbd7 9. Qe2 Bg6 10. e4 O-O 11. Bd3 Bh5 12. e5 Nd5 13. Nxd5 cxd5 14. Qe3 Re8 15. Bd2 Qa5 16. Qe1 Bxd2 17. Qxd2 Qxd2 18. Nxd2 Nb8 19. Bb5 Nc6 20. Rfc1 Rab8 21. Nb3 a6 22. Bf1 f6 23. exf6 gxf6 24. Rc5 Re7 25. f3 Be8 26. Rc3 e5 27. Rd1 Rd8 28. Kf2 Nb4 29. a5 Ba4 30. Rd2 Bxb3 31. Rxb3 Nc6 32. dxe5 fxe5 33. Rc3 e4 34. fxe4 Rf8+ 35. Rf3 dxe4 36. Rxf8+ Kxf8 37. Ke3 Nxa5 38. Rd4 Rc7 39. Ra4 Rc1 40. Be2 Nc6 41. Rxe4 Rb1 42. Rh4 Rxb2 43. Rxh7 a5 44. Bf3 a4 45. Bxc6 bxc6 46. Ra7 Rxg2 47. Rxa4 Rxh2 48. Ke4 1/2-1/2

[Event "CAT-chT Honor Division 2019"]
[Site "Catalonia"]
[Date "2019.02.09"]
[Round "4.2"]
[White "Cruz, Jonathan"]
[Black "Prie, Eric"]
[Result "0-1"]
[ECO "B01"]
[WhiteElo "2415"]
[BlackElo "2459"]
[Annotator "ChessBase"]
[PlyCount "39"]
[EventDate "2019.01.16"]
[EventType "team-tourn"]
[EventCountry "ESP"]
[SourceTitle "playchess.com"]
[Source "ChessBase"]
[SourceQuality "1"]
[WhiteTeam "Sant Andreu"]
[BlackTeam "Gerunda"]
[TimeControl "5400+30"]

1. e4 {[%emt 0:00:00]} d5 {[%emt 0:00:00]} 2. Nc3 {[%emt 0:02:25]} dxe4 {[%emt 0:02:52]} 3. Nxe4 {[%emt 0:00:16]} Qd5 {[%emt 0:03:56]} 4. Nc3 {[%emt 0:05:51]} Qa5 {[%emt 0:00:52]} 5. Bc4 {[%emt 0:01:00]} Nf6 {[%emt 0:00:10]} 6. Nge2 {[%emt 0:00:26]} Bg4 7. O-O {[%emt 0:01:20]} e6 {[%emt 0:02:48]} 8. Qe1 {[%emt 0:02:51]} Nbd7 {[%emt 0:07:21]} 9. d3 {[%emt 0:11:38]} Nb6 {[%emt 0:20:13]} 10. Bb3 {[%emt 0:05:41]} Bxe2 {[%emt 0:17:48]} 11. Qxe2 {[%emt 0:01:01]} O-O-O {[%emt 0:00:15]} 12. a4 {[%emt 0:08:07]} a6 {[%emt 0:00:57]} 13. Ne4 {[%emt 0:02:16]} h6 14. Ng3 h5 {[%emt 0:17:15]} 15. Bd2 {[%emt 0:15:50]} Bb4 {[%emt 0:00:02]} 16. c3 {[%emt 0:01:21]} Bd6 {[%emt 0:00:27]} 17. Ne4 {[%emt 0:03:10]} Nxe4 {[%emt 0:03:24]} 18. Qxe4 {[%emt 0:01:36]} Nd7 {[%emt 0:00:49]} 19. Bc4 Qe5 20. Qh4 0-1

[Event "CAT-chT Honor Division 2019"]
[Site "Catalonia"]
[Date "2019.02.09"]
[Round "4.3"]
[White "Valle Maytin, Luis Enrique"]
[Black "Cruz, Filemon"]
[Result "1/2-1/2"]
[ECO "A46"]
[WhiteElo "2285"]
[BlackElo "2303"]
[Annotator "NA"]
[PlyCount "36"]
[EventDate "2019.01.16"]
[EventType "team-tourn"]
[EventCountry "ESP"]
[SourceTitle "playchess.com"]
[Source "ChessBase"]
[SourceQuality "1"]
[WhiteTeam "Gerunda"]
[BlackTeam "Sant Andreu"]
[TimeControl "5400+30"]

1. d4 {[%emt 0:00:00]} Nf6 {[%emt 0:00:00]} 2. Nf3 {[%emt 0:00:00]} e6 {[%emt 0:00:00]} 3. c4 {[%emt 0:00:00]} b6 {[%emt 0:00:42]} 4. g3 {[%emt 0:00:19]} Ba6 {[%emt 0:02:50]} 5. Nbd2 {[%emt 0:02:14]} c5 6. Bg2 {[%emt 0:06:48]} Bb7 {[%emt 0:00:55]} 7. dxc5 {[%emt 0:01:53]} Bxc5 {[%emt 0:01:16]} 8. O-O {[%emt 0:00:25]} O-O {[%emt 0:00:11]} 9. b3 {[%emt 0:01:09]} d5 {[%emt 0:06:03]} 10. cxd5 {[%emt 0:06:45]} Bxd5 11. Bb2 {[%emt 0:00:53]} Nbd7 {[%emt 0:07:22]} 12. Rc1 {[%emt 0:04:43]} Qe7 {[%emt 0:03:52]} 13. Qc2 {[%emt 0:03:31]} Rac8 {[%emt 0:01:58]} 14. Qb1 {[%emt 0:00:27]} b5 {[%emt 0:14:07]} 15. Rfd1 {[%emt 0:04:53]} a6 {[%emt 0:04:39]} 16. Qa1 {[%emt 0:06:32]} Rfd8 {[%emt 0:05:00]} 17. e3 {[%emt 0:02:55]} h6 {[%emt 0:09:22]} 18. Rc2 {[%emt 0:04:26]} Rc7 1/2-1/2

[Event "CAT-chT Honor Division 2019"]
[Site "Catalonia"]
[Date "2019.02.09"]
[Round "4.4"]
[White "Dominguez Pons, Eric"]
[Black "Mayo Casademont, Marti"]
[Result "1-0"]
[ECO "B12"]
[WhiteElo "2383"]
[BlackElo "2284"]
[Annotator "NA"]
[PlyCount "101"]
[EventDate "2019.01.16"]
[EventType "team-tourn"]
[EventCountry "ESP"]
[SourceTitle "playchess.com"]
[Source "ChessBase"]
[SourceQuality "1"]
[WhiteTeam "Sant Andreu"]
[BlackTeam "Gerunda"]
[TimeControl "5400+30"]

1. e4 c6 {[%emt 0:00:00]} 2. d4 {[%emt 0:00:00]} d5 3. e5 {[%emt 0:00:30]} Bf5 {[%emt 0:00:10]} 4. c3 {[%emt 0:00:47]} e6 {[%emt 0:07:21]} 5. Be3 {[%emt 0:02:09]} Qb6 {[%emt 0:07:46]} 6. Qb3 {[%emt 0:02:14]} Nd7 {[%emt 0:15:23]} 7. Nd2 {[%emt 0:03:46]} Ne7 {[%emt 0:03:45]} 8. Be2 {[%emt 0:27:31] B12: Caro-Kann: Advance Variation} (8. f4 h5 9. Ngf3 h4 10. Be2 h3 11. g3 Bg4 12. Qxb6 Nxb6 13. Ng5 Nf5 14. Kf2 Bxe2 15. Kxe2 Rc8 {½-½ (33) Coleman,P (2595)-Raykin,L (2609) ICCF email 2005}) 8... Qxb3 {[%emt 0:02:00]} 9. axb3 $146 {[%emt 0:01:23]} ({Predecessor:} 9. Nxb3 f6 10. f4 h5 11. Nf3 Nc8 12. O-O Ncb6 13. Nh4 g6 14. Nxf5 gxf5 15. Rf2 O-O-O {1-0 (55) Pita Romero Rodriguez,R (2042)-Varela Guerrero,D Oropesa del Mar 2001}) 9... c5 10. f4 cxd4 {[%emt 0:06:53]} 11. Bxd4 {[%emt 0:01:10]} Nc6 {[%emt 0:04:11]} 12. Ngf3 {[%emt 0:16:07]} Bc5 {[%emt 0:00:00]} 13. Bf2 {[%emt 0:00:30]} Bxf2+ {[%emt 0:16:51]} 14. Kxf2 {[%emt 0:00:09]} Nc5 {[%emt 0:04:33]} 15. Ke3 {[%emt 0:19:20]} f6 {[%emt 0:07:33]} 16. Bb5 {[%emt 0:00:52]} O-O {[%emt 0:03:31]} 17. exf6 {[%emt 0:03:56]} gxf6 {[%emt 0:01:05]} 18. Bxc6 {[%emt 0:00:17]} bxc6 {[%emt 0:00:48]} 19. Nd4 {[%emt 0:02:11]} Rfc8 {[%emt 0:08:48]} 20. b4 {[%emt 0:03:00]} Nd7 21. Ra6 {[%emt 0:00:15]} Nb8 {[%emt 0:01:26]} 22. Ra5 {[%emt 0:00:30]} Bg6 {[%emt 0:00:50]} 23. Rha1 {[%emt 0:02:18]} e5 {[%emt 0:04:04]} 24. Ne6 {[%emt 0:00:10]} Kf7 {[%emt 0:00:35]} 25. Nc5 {[%emt 0:01:19]} Rc7 {[%emt 0:01:57]} 26. Nf3 {[%emt 0:00:46]} Re7 {[%emt 0:02:45]} 27. g4 {[%emt 0:00:10]} exf4+ {[%emt 0:00:40]} 28. Kxf4 h5 {[%emt 0:00:03]} 29. h3 {[%emt 0:01:42]} hxg4 {[%emt 0:00:48]} 30. hxg4 {[%emt 0:02:31]} a6 {[%emt 0:00:04]} 31. Nxa6 {[%emt 0:00:39]} Nd7 {[%emt 0:00:46]} 32. Nc5 {[%emt 0:01:12]} Rae8 {[%emt 0:00:45]} 33. Ra7 {[%emt 0:00:12]} Nxc5 {[%emt 0:00:26]} 34. bxc5 {[%emt 0:00:27]} Kg8 {[%emt 0:00:02]} 35. Rxe7 {[%emt 0:00:18]} Rxe7 {[%emt 0:00:14]} 36. Nd4 {[%emt 0:00:10]} Re4+ {[%emt 0:00:46]} 37. Kf3 {[%emt 0:01:43]} Be8 {[%emt 0:00:32]} 38. Ra8 {[%emt 0:00:35]} Kh7 {[%emt 0:01:01]} 39. Nf5 Bg6 {[%emt 0:00:02]} 40. Ra7+ {[%emt 0:00:55]} Kh8 {[%emt 0:00:47]} 41. Nd4 {[%emt 0:00:36]} Be8 {[%emt 0:00:45]} 42. Rc7 {[%emt 0:01:26]} Re1 {[%emt 0:00:30]} 43. Nxc6 {[%emt 0:01:37]} Bg6 {[%emt 0:00:00]} 44. Nd4 {[%emt 0:00:30]} Be4+ {[%emt 0:00:15]} 45. Kf2 Rh1 {[%emt 0:00:14]} 46. Rb7 {[%emt 0:01:35]} Rh2+ {[%emt 0:01:15]} 47. Ke3 Rg2 {[%emt 0:00:10]} 48. c6 {[%emt 0:02:46]} Rxg4 {[%emt 0:00:12]} 49. c7 {[%emt 0:00:48]} Rg3+ {[%emt 0:00:07]} 50. Kf4 {[%emt 0:00:43]} Rg8 51. Rb8 1-0

[Event "CAT-chT Honor Division 2019"]
[Site "Catalonia"]
[Date "2019.02.09"]
[Round "4.4"]
[White "Matnadze, Ana"]
[Black "Ortega Serra, Marc"]
[Result "1-0"]
[ECO "E06"]
[WhiteElo "2372"]
[BlackElo "2352"]
[Annotator "NA"]
[PlyCount "73"]
[EventDate "2019.01.16"]
[EventType "team-tourn"]
[EventCountry "ESP"]
[SourceTitle "playchess.com"]
[Source "ChessBase"]
[SourceQuality "1"]
[WhiteTeam "Escola Escacs BCN"]
[BlackTeam "Cerdanyola Valles"]
[TimeControl "5400+30"]

1. Nf3 d5 2. d4 Nf6 3. g3 e6 4. Bg2 Be7 5. c4 O-O 6. Nc3 dxc4 7. Ne5 Nc6 8. Bxc6 bxc6 9. Nxc6 Qe8 10. Nxe7+ Qxe7 11. Qa4 c5 12. Qxc4 cxd4 13. Qxd4 e5 14. Qh4 Rb8 15. O-O Rb4 16. e4 h6 17. f3 Rd8 18. g4 Ba6 19. Re1 Rd3 20. Qf2 Qb7 21. h3 Nh7 22. Nd5 Ng5 23. Bxg5 Rxb2 24. Qh4 Rxd5 25. exd5 Qxd5 26. Bc1 Rc2 27. Qg3 Be2 28. Be3 Bxf3 29. Bf2 f6 30. a4 a6 31. Rac1 Ra2 32. Rc3 Bh1 33. Rd3 Qc6 34. Rd8+ Kh7 35. Qd3+ e4 36. Qd5 Qc2 37. Qf5+ 1-0

[Event "CAT-chT Honor Division 2019"]
[Site "Catalonia"]
[Date "2019.02.09"]
[Round "4.5"]
[White "Bru Rullo, Llatzer"]
[Black "Grafl, Florian"]
[Result "1/2-1/2"]
[ECO "A40"]
[WhiteElo "2298"]
[BlackElo "2340"]
[Annotator "NA"]
[PlyCount "92"]
[EventDate "2019.01.16"]
[EventType "team-tourn"]
[EventCountry "ESP"]
[SourceTitle "playchess.com"]
[Source "ChessBase"]
[SourceQuality "1"]
[WhiteTeam "Cerdanyola Valles"]
[BlackTeam "Escola Escacs BCN"]
[TimeControl "5400+30"]

1. d4 Nc6 2. d5 Ne5 3. e4 e6 4. f4 Ng6 5. dxe6 fxe6 6. Bd3 {A40: Unusual replies to 1 d4} (6. Nf3 Bc5 7. Nc3 Nf6 8. e5 Ng4 9. Ne4 Bb6 10. c4 Qe7 11. Qc2 Be3 12. g3 O-O 13. Bh3 Bxc1 14. Rxc1 {1-0 (22) Aronian,L (2767)-Caruana,F (2822) chess.com INT 2018}) 6... Bb4+ $146 ({Predecessor:} 6... Bc5 7. Nf3 d6 8. Nc3 Bd7 9. Qe2 Qe7 10. Bd2 Nf6 11. e5 Nd5 12. Nxd5 exd5 13. e6 Bc6 {1-0 (52) Petrukhina,I (2148)-Pakhomov,E (2409) Kemerovo 2011}) 7. Nc3 d5 8. exd5 exd5 9. Bd2 N8e7 10. Qh5 O-O 11. g4 d4 12. Nce2 Bxd2+ 13. Kxd2 Qd5 14. Qxd5+ Nxd5 15. Bc4 c6 16. Bxd5+ cxd5 17. h3 h5 18. gxh5 Nxf4 19. Nxf4 Rxf4 20. Ne2 Rh4 21. Rag1 Rxh5 22. Rg3 Bd7 23. Rhg1 Rh7 24. Nf4 Rf8 25. Nxd5 Rf7 26. Rd3 Rxh3 27. Rxd4 Kh7 28. Rg2 Bc6 29. Re2 g5 30. c4 Rg3 31. Ne3 Bd7 32. Rd6 Kg7 33. Rh2 Bc6 34. Nd5 g4 35. Rdh6 Rf2+ 36. Rxf2 Kxh6 37. Ne7 Rg2 38. Rxg2 Bxg2 39. Ke3 Kg5 40. c5 g3 41. b4 a6 42. a4 Kf6 $11 43. Nc8 Bc6 44. b5 g2 45. Kf2 axb5 46. axb5 Bxb5 1/2-1/2

[Event "CAT-chT Honor Division 2019"]
[Site "Catalonia"]
[Date "2019.02.09"]
[Round "4.5"]
[White "Medina Masdeu, Rasen"]
[Black "Castelltort Fernandez, Antonio"]
[Result "1/2-1/2"]
[ECO "A04"]
[WhiteElo "2160"]
[BlackElo "2247"]
[Annotator "NA"]
[PlyCount "71"]
[EventDate "2019.01.16"]
[EventType "team-tourn"]
[EventCountry "ESP"]
[SourceTitle "playchess.com"]
[Source "ChessBase"]
[SourceQuality "1"]
[WhiteTeam "Gerunda"]
[BlackTeam "Sant Andreu"]
[TimeControl "5400+30"]

1. Nf3 {[%emt 0:00:11]} d6 {[%emt 0:00:00]} 2. e4 {[%emt 0:01:45]} Nf6 {[%emt 0:00:27]} 3. Nc3 {[%emt 0:00:14]} e5 {[%emt 0:00:17]} 4. d4 {[%emt 0:00:23]} exd4 5. Nxd4 Be7 {[%emt 0:01:13]} 6. Be2 {[%emt 0:04:35]} O-O {[%emt 0:00:50]} 7. Be3 {[%emt 0:04:55]} Re8 {[%emt 0:01:48]} 8. Qd2 {[%emt 0:15:54]} c6 {[%emt 0:10:42]} 9. f3 {[%emt 0:19:19]} Bf8 {[%emt 0:23:48]} 10. g4 {[%emt 0:07:50]} d5 {[%emt 0:15:23]} 11. g5 {[%emt 0:01:14]} Nh5 {[%emt 0:03:46]} 12. exd5 {[%emt 0:04:21]} Qe7 {[%emt 0:05:49]} 13. Bf2 {[%emt 0:04:01]} c5 {[%emt 0:04:20]} 14. Ndb5 {[%emt 0:06:01]} Na6 {[%emt 0:03:47]} 15. O-O-O {[%emt 0:00:40]} Bf5 {[%emt 0:00:35]} 16. a3 {[%emt 0:03:20]} Qd7 {[%emt 0:05:16]} 17. Rhe1 {[%emt 0:01:47]} g6 {[%emt 0:03:35]} 18. Bd3 {[%emt 0:00:33]} Bxd3 {[%emt 0:00:39]} 19. Qxd3 {[%emt 0:00:12]} Rxe1 {[%emt 0:01:32]} 20. Rxe1 {[%emt 0:00:19]} Nc7 {[%emt 0:00:48]} 21. Nxc7 {[%emt 0:04:14]} Qxc7 {[%emt 0:00:07]} 22. Ne4 Rd8 {[%emt 0:03:17]} 23. Rd1 {[%emt 0:04:22]} Qxh2 {[%emt 0:06:15]} 24. Bxc5 {[%emt 0:03:37]} Bxc5 {[%emt 0:02:22]} 25. Nxc5 {[%emt 0:00:02]} Qc7 {[%emt 0:02:16]} 26. Ne4 {[%emt 0:02:26]} Nf4 27. Qb3 {[%emt 0:00:27]} Qe5 {[%emt 0:02:01]} 28. Kb1 Kg7 {[%emt 0:00:36]} 29. d6 {[%emt 0:00:59]} b6 {[%emt 0:00:53]} 30. Qa4 {[%emt 0:00:12]} a5 {[%emt 0:00:38]} 31. Qc6 {[%emt 0:00:41]} b5 {[%emt 0:01:14]} 32. Qc7 {[%emt 0:00:19]} Ne6 {[%emt 0:00:19]} 33. Qxa5 {[%emt 0:00:11]} Rd7 34. Qa8 Rd8 {[%emt 0:01:19]} 35. Qc6 {[%emt 0:03:26]} Qf4 {[%emt 0:00:31]} 36. Qc3+ {[%emt 0:00:12]} 1/2-1/2

[Event "CAT-chT Honor Division 2019"]
[Site "Catalonia"]
[Date "2019.02.09"]
[Round "4.6"]
[White "Hernando Rodrigo, Julio Antonio"]
[Black "Escandell, Juan C"]
[Result "1-0"]
[ECO "D85"]
[WhiteElo "2308"]
[BlackElo "2188"]
[Annotator "NA"]
[PlyCount "85"]
[EventDate "2019.01.16"]
[EventType "team-tourn"]
[EventCountry "ESP"]
[SourceTitle "playchess.com"]
[Source "ChessBase"]
[SourceQuality "1"]
[WhiteTeam "Escola Escacs BCN"]
[BlackTeam "Cerdanyola Valles"]
[TimeControl "5400+30"]

1. d4 Nf6 2. c4 g6 3. Nc3 d5 4. cxd5 Nxd5 5. e4 Nxc3 6. bxc3 Bg7 7. Nf3 O-O 8. Be2 c5 9. Rb1 b6 10. O-O Bb7 11. Qd3 e6 12. Bg5 Qc7 13. Qe3 Nd7 14. e5 a6 15. Nd2 b5 16. Be7 Rfc8 17. Bd6 cxd4 18. cxd4 Qc3 19. Bd3 Nb6 20. Rb3 Qc6 21. Qg3 Nd5 22. Ne4 f5 23. Nc5 Re8 24. Nxb7 Qxb7 25. Rc1 Rac8 26. Rc5 Bf8 27. h4 Kg7 28. a4 b4 29. Bc4 Rxc5 30. dxc5 Qc6 31. Bxd5 Qxd5 32. Rxb4 a5 33. Rb6 Bxd6 34. exd6 Rc8 35. Qc3+ e5 36. d7 Qd1+ 37. Kh2 Qxd7 38. Qxe5+ Kg8 39. Rd6 Qf7 40. c6 Qc4 41. g3 Qa2 42. Qd4 Qc2 43. Rd7 1-0

[Event "CAT-chT Honor Division 2019"]
[Site "Catalonia"]
[Date "2019.02.09"]
[Round "4.6"]
[White "Subirats Ruiz, Sergi"]
[Black "Molina Carretero, Daniel"]
[Result "1-0"]
[ECO "B00"]
[WhiteElo "2219"]
[BlackElo "2114"]
[Annotator "NA"]
[PlyCount "67"]
[EventDate "2019.01.16"]
[EventType "team-tourn"]
[EventCountry "ESP"]
[SourceTitle "playchess.com"]
[Source "ChessBase"]
[SourceQuality "1"]
[WhiteTeam "Sant Andreu"]
[BlackTeam "Gerunda"]
[TimeControl "5400+30"]

1. e4 c5 2. Nf3 {[%emt 0:05:23]} d6 {[%emt 0:06:26]} 3. d4 {[%emt 0:00:05]} cxd4 {[%emt 0:00:12]} 4. Nxd4 {[%emt 0:00:10]} Nf6 {[%emt 0:00:11]} 5. Nc3 {[%emt 0:00:04]} g6 {[%emt 0:00:37]} 6. Be3 {[%emt 0:00:44]} Bg7 7. f3 Nc6 {[%emt 0:00:46]} 8. Bc4 {[%emt 0:01:35]} O-O {[%emt 0:00:27]} 9. Qd2 {[%emt 0:00:22]} Bd7 {[%emt 0:00:16]} 10. O-O-O {[%emt 0:02:46]} Ne5 {[%emt 0:00:35]} 11. Bb3 {[%emt 0:00:35]} Qa5 {[%emt 0:00:26]} 12. h4 {[%emt 0:03:03]} Rfc8 {[%emt 0:02:07]} 13. g4 {[%emt 0:10:11]} b5 14. h5 {[%emt 0:00:08]} Nc4 {[%emt 0:18:09]} 15. Bxc4 {[%emt 0:02:06]} bxc4 {[%emt 0:01:29]} 16. Bh6 {[%emt 0:43:09]} Bh8 {[%emt 0:13:21]} 17. Nf5 {[%emt 0:00:26]} Bxf5 18. gxf5 {[%emt 0:00:11]} Rab8 {[%emt 0:03:03]} 19. hxg6 {[%emt 0:05:36]} fxg6 {[%emt 0:27:00]} 20. Rdg1 {[%emt 0:00:07]} Rxb2 {[%emt 0:03:21]} 21. fxg6 {[%emt 0:00:07]} hxg6 22. Qg2 Kf7 {[%emt 0:12:26]} 23. Qxg6+ {[%emt 0:00:50]} Ke6 {[%emt 0:03:31]} 24. Bd2 {[%emt 0:15:45]} Rbb8 {[%emt 0:00:30]} 25. Rg5 {[%emt 0:01:06]} Rc5 {[%emt 0:02:17]} 26. Rh7 {[%emt 0:04:48]} Kd7 27. Rxe7+ Kc6 {[%emt 0:05:46]} 28. e5 {[%emt 0:03:13]} Qa3+ {[%emt 0:00:31]} 29. Kd1 {[%emt 0:00:06]} Rb1+ {[%emt 0:00:22]} 30. Ke2 {[%emt 0:00:05]} Rd5 {[%emt 0:00:40]} 31. Nxb1 {[%emt 0:00:36]} Qa6 32. Nc3 {[%emt 0:00:56]} Nd7 {[%emt 0:00:54]} 33. Rxd7 {[%emt 0:00:07]} Kxd7 {[%emt 0:00:24]} 34. Qf7+ 1-0

[Event "CAT-chT Honor Division 2019"]
[Site "Catalonia"]
[Date "2019.02.09"]
[Round "4.7"]
[White "Castellet Giralt, Gabriel"]
[Black "Vehi Bach, Victor Manuel"]
[Result "0-1"]
[ECO "B23"]
[WhiteElo "2217"]
[BlackElo "2306"]
[Annotator "NA"]
[PlyCount "78"]
[EventDate "2019.01.16"]
[EventType "team-tourn"]
[EventCountry "ESP"]
[SourceTitle "playchess.com"]
[Source "ChessBase"]
[SourceQuality "1"]
[WhiteTeam "Cerdanyola Valles"]
[BlackTeam "Escola Escacs BCN"]
[TimeControl "5400+30"]

1. e4 c5 2. Nc3 a6 3. g3 b5 4. Bg2 Bb7 5. d3 e6 6. Nh3 Nf6 7. O-O d6 8. f4 Qc7 9. Nf2 Nc6 10. Be3 Be7 11. g4 h6 12. h4 Nd7 13. h5 Nb6 14. a4 b4 15. Ne2 a5 16. c4 Bf6 17. Ra2 Nd4 18. b3 Nd7 19. Bxd4 Bxd4 20. Ng3 O-O-O 21. Re2 g6 22. Kh2 Nf6 23. hxg6 h5 24. g7 Rh7 25. gxh5 Nxh5 26. Nxh5 Rxh5+ 27. Nh3 Rh7 28. Rf3 Rxg7 29. Bf1 Rdg8 30. Rg2 f5 31. Qe1 Qe7 32. Rxg7 Qxg7 33. Ng5 fxe4 34. dxe4 e5 35. Bh3+ Kb8 36. Rg3 exf4 37. Rg4 Qe7 38. Qh4 Bf6 39. Qh7 Rxg5 0-1